[Event "Titled Tuesday Blitz June 15 2021"]
[White "Zubov, Alexander"]
[Black "Svane, Frederik"]
[WhiteFideId "14109409"]
[BlackFideId "12923044"]
[WhiteElo "2740"]
[BlackElo "2459"]
[Result "1-0"]
[Round "06"]
[TimeControl "180+1"]
[Date "2021.06.15"]
[WhiteClock "0:00:19"]
[BlackClock "0:00:03"]

1. e4 {[%clk 0:03:00]}  c5 {[%clk 0:03:00]} 2. Nf3 {[%clk 0:03:00]}  Nc6 {[%clk 0:03:01]} 3. Bb5 {[%clk 0:03:00]}  g6 {[%clk 0:03:01]} 4. O-O {[%clk 0:02:59]}  Bg7 {[%clk 0:03:01]} 5. c3 {[%clk 0:02:59]}  Nf6 {[%clk 0:03:01]} 6. Re1 {[%clk 0:03:00]}  O-O {[%clk 0:03:00]} 7. h3 {[%clk 0:03:00]}  a6 {[%clk 0:02:42]} 8. Bf1 {[%clk 0:02:53]}  e5 {[%clk 0:02:42]} 9. d3 {[%clk 0:02:48]}  d5 {[%clk 0:02:36]} 10. Bg5 {[%clk 0:02:46]}  h6 {[%clk 0:02:33]} 11. Bh4 {[%clk 0:02:35]}  Re8 {[%clk 0:01:59]} 12. Nbd2 {[%clk 0:02:31]}  d4 {[%clk 0:01:53]} 13. a4 {[%clk 0:02:17]}  Be6 {[%clk 0:01:36]} 14. a5 {[%clk 0:02:11]}  g5 {[%clk 0:01:35]} 15. Bg3 {[%clk 0:02:10]}  Nd7 {[%clk 0:01:35]} 16. Qa4 {[%clk 0:02:08]}  Qc7 {[%clk 0:01:28]} 17. Be2 {[%clk 0:02:04]}  Rec8 {[%clk 0:01:25]} 18. Bd1 {[%clk 0:02:03]}  b5 {[%clk 0:01:23]} 19. axb6 {[%clk 0:02:02]}  Nxb6 {[%clk 0:01:23]} 20. Qa3 {[%clk 0:01:51]}  dxc3 {[%clk 0:01:14]} 21. bxc3 {[%clk 0:01:48]}  Qd8 {[%clk 0:01:02]} 22. Bb3 {[%clk 0:01:30]}  Bxb3 {[%clk 0:00:57]} 23. Qxb3 {[%clk 0:01:29]}  a5 {[%clk 0:00:48]} 24. Reb1 {[%clk 0:01:23]}  Rab8 {[%clk 0:00:49]} 25. Qc2 {[%clk 0:01:22]}  c4 {[%clk 0:00:42]} 26. Nxc4 {[%clk 0:01:14]}  Nxc4 {[%clk 0:00:41]} 27. dxc4 {[%clk 0:01:14]}  Rxb1+ {[%clk 0:00:30]} 28. Rxb1 {[%clk 0:01:13]}  Ra8 {[%clk 0:00:26]} 29. Qa4 {[%clk 0:00:54]}  Qc7 {[%clk 0:00:26]} 30. Nd4 {[%clk 0:00:48]}  Rc8 {[%clk 0:00:14]} 31. Nf5 {[%clk 0:00:45]}  f6 {[%clk 0:00:11]} 32. f3 {[%clk 0:00:37]}  Bf8 {[%clk 0:00:10]} 33. Bf2 {[%clk 0:00:34]}  Ne7 {[%clk 0:00:11]} 34. Ne3 {[%clk 0:00:34]}  Ng6 {[%clk 0:00:08]} 35. Nd5 {[%clk 0:00:33]}  Qxc4 {[%clk 0:00:07]} 36. Qxa5 {[%clk 0:00:27]}  Nf4 {[%clk 0:00:08]} 37. Nxf6+ {[%clk 0:00:25]}  Kf7 {[%clk 0:00:07]} 38. Qxe5 {[%clk 0:00:21]}  Qxc3 {[%clk 0:00:04]} 39. Rb7+ {[%clk 0:00:19]}  Kg6 {[%clk 0:00:03]} 40. Qf5# {[%clk 0:00:19]} 1-0


[Site "https://www.chess.com"]

[Event "Titled Tuesday Blitz June 15 2021"]
[White "deribas12345"]
[Black "Libiszewski, Fabien"]
[BlackFideId "616834"]
[WhiteElo "2529"]
[BlackElo "2440"]
[Result "1-0"]
[Round "06"]
[TimeControl "180+1"]
[Date "2021.06.15"]
[WhiteClock "0:00:04"]
[BlackClock "0:00:01"]

1. d4 {[%clk 0:02:56]}  Nf6 {[%clk 0:02:59]} 2. c4 {[%clk 0:02:55]}  g6 {[%clk 0:02:59]} 3. Nc3 {[%clk 0:02:55]}  Bg7 {[%clk 0:03:00]} 4. e4 {[%clk 0:02:56]}  d6 {[%clk 0:03:00]} 5. Nge2 {[%clk 0:02:56]}  Nbd7 {[%clk 0:02:56]} 6. Ng3 {[%clk 0:02:55]}  e5 {[%clk 0:02:55]} 7. d5 {[%clk 0:02:56]}  h5 {[%clk 0:02:56]} 8. Be2 {[%clk 0:02:53]}  h4 {[%clk 0:02:52]} 9. Nf1 {[%clk 0:02:54]}  Nc5 {[%clk 0:02:52]} 10. f3 {[%clk 0:02:53]}  a5 {[%clk 0:02:44]} 11. Bg5 {[%clk 0:02:52]}  Bd7 {[%clk 0:02:35]} 12. Qd2 {[%clk 0:02:46]}  a4 {[%clk 0:02:28]} 13. Ne3 {[%clk 0:02:44]}  Bh6 {[%clk 0:02:16]} 14. Bxh6 {[%clk 0:02:39]}  Rxh6 {[%clk 0:02:17]} 15. O-O {[%clk 0:02:33]}  Kf8 {[%clk 0:02:02]} 16. Rab1 {[%clk 0:02:18]}  Kg7 {[%clk 0:01:57]} 17. b4 {[%clk 0:02:17]}  axb3 {[%clk 0:01:57]} 18. axb3 {[%clk 0:02:17]}  Nh5 {[%clk 0:01:58]} 19. b4 {[%clk 0:02:17]}  Na4 {[%clk 0:01:58]} 20. Nxa4 {[%clk 0:01:59]}  Rxa4 {[%clk 0:01:58]} 21. Bd1 {[%clk 0:01:51]}  Ra3 {[%clk 0:01:48]} 22. Nc2 {[%clk 0:01:27]}  Ra2 {[%clk 0:01:47]} 23. Ra1 {[%clk 0:01:06]}  Qa8 {[%clk 0:01:38]} 24. Rxa2 {[%clk 0:00:55]}  Qxa2 {[%clk 0:01:39]} 25. Qc3 {[%clk 0:00:44]}  Nf4 {[%clk 0:01:32]} 26. Ne3 {[%clk 0:00:44]}  Rh8 {[%clk 0:01:17]} 27. c5 {[%clk 0:00:40]}  Bb5 {[%clk 0:01:03]} 28. Rf2 {[%clk 0:00:34]}  Qb1 {[%clk 0:00:58]} 29. Qb2 {[%clk 0:00:22]}  Qd3 {[%clk 0:00:38]} 30. Qd2 {[%clk 0:00:22]}  Qxd2 {[%clk 0:00:35]} 31. Rxd2 {[%clk 0:00:22]}  Ra8 {[%clk 0:00:36]} 32. g3 {[%clk 0:00:19]}  hxg3 {[%clk 0:00:34]} 33. hxg3 {[%clk 0:00:20]}  Nh5 {[%clk 0:00:35]} 34. Kf2 {[%clk 0:00:19]}  Ra3 {[%clk 0:00:30]} 35. Rb2 {[%clk 0:00:16]}  Nxg3 {[%clk 0:00:20]} 36. cxd6 {[%clk 0:00:16]}  cxd6 {[%clk 0:00:20]} 37. Nc2 {[%clk 0:00:12]}  Rd3 {[%clk 0:00:18]} 38. Kxg3 {[%clk 0:00:09]}  Rxd1 {[%clk 0:00:19]} 39. Na3 {[%clk 0:00:10]}  Bd3 {[%clk 0:00:17]} 40. Rb3 {[%clk 0:00:09]}  b5 {[%clk 0:00:11]} 41. Rc3 {[%clk 0:00:07]}  Kf6 {[%clk 0:00:08]} 42. Kf2 {[%clk 0:00:07]}  Kg5 {[%clk 0:00:06]} 43. Ke3 {[%clk 0:00:07]}  Bf1 {[%clk 0:00:05]} 44. Nc2 {[%clk 0:00:05]}  Bc4 {[%clk 0:00:04]} 45. Na3 {[%clk 0:00:04]}  Bf1 {[%clk 0:00:04]} 46. Nc2 {[%clk 0:00:05]}  f5 {[%clk 0:00:05]} 47. Kf2 {[%clk 0:00:04]}  Bc4 {[%clk 0:00:05]} 48. Ne3 {[%clk 0:00:04]}  Rd3 {[%clk 0:00:03]} 49. Rxd3 {[%clk 0:00:02]}  Bxd3 {[%clk 0:00:04]} 50. exf5 {[%clk 0:00:03]}  gxf5 {[%clk 0:00:04]} 51. Nd1 {[%clk 0:00:02]}  Bc4 {[%clk 0:00:03]} 52. Nc3 {[%clk 0:00:03]}  Kf4 {[%clk 0:00:03]} 53. Nd1 {[%clk 0:00:03]}  Bxd5 {[%clk 0:00:03]} 54. Ne3 {[%clk 0:00:04]}  Be6 {[%clk 0:00:02]} 55. Ng2+ {[%clk 0:00:05]}  Kg5 {[%clk 0:00:03]} 56. Ne3 {[%clk 0:00:05]}  Kf6 {[%clk 0:00:02]} 57. Nc2 {[%clk 0:00:06]}  d5 {[%clk 0:00:02]} 58. f4 {[%clk 0:00:05]}  d4 {[%clk 0:00:01]} 59. Ne1 {[%clk 0:00:04]} 1-0


[Site "https://www.chess.com"]

[Event "Titled Tuesday Blitz June 15 2021"]
[White "Abdusattorov, Nodirbek"]
[Black "Najdin, Danil"]
[WhiteFideId "14204118"]
[BlackFideId "4172426"]
[WhiteElo "2662"]
[BlackElo "2193"]
[Result "1-0"]
[Round "07"]
[TimeControl "180+1"]
[Date "2021.06.15"]
[WhiteClock "0:00:37"]
[BlackClock "0:00:01"]

1. d4 {[%clk 0:03:00]}  Nf6 {[%clk 0:02:58]} 2. c4 {[%clk 0:03:00]}  g6 {[%clk 0:02:59]} 3. Nc3 {[%clk 0:02:59]}  Bg7 {[%clk 0:02:59]} 4. e4 {[%clk 0:02:59]}  d6 {[%clk 0:02:59]} 5. Be2 {[%clk 0:02:58]}  O-O {[%clk 0:02:58]} 6. Bg5 {[%clk 0:02:57]}  Na6 {[%clk 0:02:58]} 7. Qd2 {[%clk 0:02:56]}  e5 {[%clk 0:02:44]} 8. d5 {[%clk 0:02:49]}  Nc5 {[%clk 0:02:43]} 9. f3 {[%clk 0:02:49]}  a5 {[%clk 0:02:43]} 10. h4 {[%clk 0:02:49]}  c6 {[%clk 0:02:37]} 11. h5 {[%clk 0:02:48]}  cxd5 {[%clk 0:02:33]} 12. cxd5 {[%clk 0:02:44]}  a4 {[%clk 0:02:28]} 13. Nh3 {[%clk 0:02:41]}  Qa5 {[%clk 0:02:26]} 14. h6 {[%clk 0:02:39]}  Bh8 {[%clk 0:02:26]} 15. Nf2 {[%clk 0:02:38]}  Bd7 {[%clk 0:02:24]} 16. O-O {[%clk 0:02:35]}  b5 {[%clk 0:02:21]} 17. Rfc1 {[%clk 0:02:29]}  Rfc8 {[%clk 0:02:04]} 18. Ncd1 {[%clk 0:02:26]}  b4 {[%clk 0:01:57]} 19. Ne3 {[%clk 0:02:25]}  Qb6 {[%clk 0:01:17]} 20. Nc4 {[%clk 0:02:23]}  Qb8 {[%clk 0:01:18]} 21. Be3 {[%clk 0:02:17]}  Ne8 {[%clk 0:01:17]} 22. Nd3 {[%clk 0:02:13]}  Nxd3 {[%clk 0:01:15]} 23. Bxd3 {[%clk 0:02:13]}  Bf6 {[%clk 0:01:04]} 24. Nb6 {[%clk 0:02:10]}  Rxc1+ {[%clk 0:01:04]} 25. Rxc1 {[%clk 0:02:11]}  Ra7 {[%clk 0:00:59]} 26. Qxb4 {[%clk 0:02:11]}  Rb7 {[%clk 0:00:53]} 27. Ba6 {[%clk 0:01:29]}  Bg5 {[%clk 0:00:52]} 28. Bxg5 {[%clk 0:01:12]}  Rxb6 {[%clk 0:00:52]} 29. Qa5 {[%clk 0:01:10]}  Qa7 {[%clk 0:00:49]} 30. Kh2 {[%clk 0:00:50]}  Rxa6 {[%clk 0:00:48]} 31. Qd8 {[%clk 0:00:50]}  f6 {[%clk 0:00:35]} 32. Bxf6 {[%clk 0:00:47]}  Qe3 {[%clk 0:00:19]} 33. Bg5 {[%clk 0:00:44]}  Ra8 {[%clk 0:00:14]} 34. Qxe8+ {[%clk 0:00:37]}  Bxe8 {[%clk 0:00:10]} 35. Bxe3 {[%clk 0:00:38]}  Rb8 {[%clk 0:00:11]} 36. Rc7 {[%clk 0:00:35]}  Rxb2 {[%clk 0:00:08]} 37. Rg7+ {[%clk 0:00:35]}  Kh8 {[%clk 0:00:03]} 38. Bg5 {[%clk 0:00:36]}  Rb8 {[%clk 0:00:01]} 39. Bf6 {[%clk 0:00:37]} 1-0


[Site "https://www.chess.com"]

[Event "Titled Tuesday Blitz June 15 2021"]
[White "Andreikin, Dmitry"]
[Black "Bluebaum, Matthias"]
[WhiteFideId "4158814"]
[BlackFideId "24651516"]
[WhiteElo "2782"]
[BlackElo "2685"]
[Result "1-0"]
[Round "07"]
[TimeControl "180+1"]
[Date "2021.06.15"]
[WhiteClock "0:01:07"]
[BlackClock "0:00:08"]

1. d4 {[%clk 0:03:00]}  Nf6 {[%clk 0:03:00]} 2. Bg5 {[%clk 0:03:00]}  d5 {[%clk 0:02:59]} 3. Nd2 {[%clk 0:03:00]}  e6 {[%clk 0:02:55]} 4. e3 {[%clk 0:03:00]}  c5 {[%clk 0:02:51]} 5. c3 {[%clk 0:03:00]}  Nc6 {[%clk 0:02:51]} 6. f4 {[%clk 0:02:58]}  Be7 {[%clk 0:02:41]} 7. Bd3 {[%clk 0:02:56]}  h6 {[%clk 0:02:25]} 8. Bh4 {[%clk 0:02:56]}  cxd4 {[%clk 0:02:25]} 9. exd4 {[%clk 0:02:53]}  g5 {[%clk 0:02:24]} 10. fxg5 {[%clk 0:02:50]}  Nd7 {[%clk 0:02:19]} 11. Qh5 {[%clk 0:02:40]}  Bxg5 {[%clk 0:02:20]} 12. Bxg5 {[%clk 0:02:27]}  Qxg5 {[%clk 0:02:21]} 13. Qe2 {[%clk 0:02:27]}  Nb6 {[%clk 0:02:08]} 14. Ngf3 {[%clk 0:02:22]}  Qg7 {[%clk 0:02:07]} 15. O-O {[%clk 0:02:16]}  Bd7 {[%clk 0:01:52]} 16. a4 {[%clk 0:02:13]}  Nc8 {[%clk 0:01:45]} 17. b4 {[%clk 0:02:09]}  Nd6 {[%clk 0:01:39]} 18. b5 {[%clk 0:02:09]}  Ne7 {[%clk 0:01:39]} 19. Ne5 {[%clk 0:02:06]}  O-O-O {[%clk 0:01:26]} 20. c4 {[%clk 0:02:03]}  Ndf5 {[%clk 0:01:03]} 21. cxd5 {[%clk 0:01:50]}  Nxd5 {[%clk 0:01:03]} 22. Bxf5 {[%clk 0:01:45]}  exf5 {[%clk 0:01:02]} 23. Qc4+ {[%clk 0:01:45]}  Kb8 {[%clk 0:00:30]} 24. Qxd5 {[%clk 0:01:44]}  Be6 {[%clk 0:00:29]} 25. Qc5 {[%clk 0:01:44]}  Rd5 {[%clk 0:00:21]} 26. Qb4 {[%clk 0:01:32]}  Rg8 {[%clk 0:00:17]} 27. Rf2 {[%clk 0:01:29]}  Rgd8 {[%clk 0:00:16]} 28. Ndf3 {[%clk 0:01:24]}  f4 {[%clk 0:00:15]} 29. Rc1 {[%clk 0:01:21]}  Ka8 {[%clk 0:00:15]} 30. Rc7 {[%clk 0:01:17]}  Qg8 {[%clk 0:00:11]} 31. Rfc2 {[%clk 0:01:16]}  f6 {[%clk 0:00:10]} 32. Nc4 {[%clk 0:01:11]}  Bf5 {[%clk 0:00:08]} 33. Rc1 {[%clk 0:01:09]}  Be4 {[%clk 0:00:09]} 34. Ncd2 {[%clk 0:01:08]}  Rxd4 {[%clk 0:00:08]} 35. Qxd4 {[%clk 0:01:07]} 1-0


[Site "https://www.chess.com"]

[Event "Titled Tuesday Blitz June 15 2021"]
[White "Andrews, Todd"]
[Black "Javakhadze, Zurab"]
[WhiteFideId "2012456"]
[BlackFideId "13603647"]
[WhiteElo "2437"]
[BlackElo "2381"]
[Result "0-1"]
[Round "07"]
[TimeControl "180+1"]
[Date "2021.06.15"]
[WhiteClock "0:00:19"]
[BlackClock "0:00:44"]

1. e4 {[%clk 0:03:00]}  c6 {[%clk 0:02:58]} 2. d4 {[%clk 0:03:00]}  g6 {[%clk 0:02:56]} 3. Nc3 {[%clk 0:02:59]}  d5 {[%clk 0:02:55]} 4. e5 {[%clk 0:02:58]}  f6 {[%clk 0:02:45]} 5. f4 {[%clk 0:02:58]}  Nh6 {[%clk 0:02:45]} 6. Nf3 {[%clk 0:02:57]}  Bg7 {[%clk 0:02:45]} 7. Bd3 {[%clk 0:02:55]}  Bg4 {[%clk 0:02:41]} 8. O-O {[%clk 0:02:55]}  Qb6 {[%clk 0:02:34]} 9. Be3 {[%clk 0:02:33]}  Nd7 {[%clk 0:02:07]} 10. Na4 {[%clk 0:02:20]}  Qa5 {[%clk 0:02:01]} 11. c3 {[%clk 0:02:19]}  O-O {[%clk 0:01:50]} 12. b4 {[%clk 0:02:18]}  Qc7 {[%clk 0:01:48]} 13. h3 {[%clk 0:02:13]}  Bxf3 {[%clk 0:01:47]} 14. Rxf3 {[%clk 0:02:13]}  b6 {[%clk 0:01:42]} 15. Qe1 {[%clk 0:01:54]}  fxe5 {[%clk 0:01:39]} 16. dxe5 {[%clk 0:01:47]}  Nf5 {[%clk 0:01:25]} 17. Bd2 {[%clk 0:01:46]}  e6 {[%clk 0:01:21]} 18. g4 {[%clk 0:01:39]}  Ne7 {[%clk 0:01:21]} 19. Qh4 {[%clk 0:01:36]}  Nxe5 {[%clk 0:01:21]} 20. Re3 {[%clk 0:01:27]}  Rxf4 {[%clk 0:00:58]} 21. Be2 {[%clk 0:01:22]}  Raf8 {[%clk 0:00:56]} 22. Nb2 {[%clk 0:01:10]}  Nf3+ {[%clk 0:00:51]} 23. Bxf3 {[%clk 0:01:10]}  Rxf3 {[%clk 0:00:52]} 24. Rxf3 {[%clk 0:01:10]}  Rxf3 {[%clk 0:00:52]} 25. Kg2 {[%clk 0:01:10]}  Rf7 {[%clk 0:00:49]} 26. Re1 {[%clk 0:01:08]}  e5 {[%clk 0:00:48]} 27. Nd3 {[%clk 0:01:04]}  e4 {[%clk 0:00:48]} 28. Nf4 {[%clk 0:00:36]}  Bxc3 {[%clk 0:00:43]} 29. Bxc3 {[%clk 0:00:27]}  Qxf4 {[%clk 0:00:43]} 30. Qg3 {[%clk 0:00:19]}  Qxg3+ {[%clk 0:00:42]} 31. Kxg3 {[%clk 0:00:20]}  Rf3+ {[%clk 0:00:43]} 32. Kg2 {[%clk 0:00:19]}  Rxc3 {[%clk 0:00:44]} 33. Rf1 {[%clk 0:00:19]} 0-1


[Site "https://www.chess.com"]

[Event "Titled Tuesday Blitz June 15 2021"]
[White "Aradhya, Garg"]
[Black "Sirosh, Ilja"]
[WhiteFideId "25006746"]
[BlackFideId "4500458"]
[WhiteElo "2146"]
[BlackElo "2241"]
[Result "1/2-1/2"]
[Round "07"]
[TimeControl "180+1"]
[Date "2021.06.15"]
[WhiteClock "0:00:13"]
[BlackClock "0:00:05"]

1. d4 {[%clk 0:03:00]}  d5 {[%clk 0:02:59]} 2. c4 {[%clk 0:03:00]}  e6 {[%clk 0:03:00]} 3. Nc3 {[%clk 0:03:00]}  c5 {[%clk 0:03:00]} 4. cxd5 {[%clk 0:02:57]}  exd5 {[%clk 0:03:01]} 5. Nf3 {[%clk 0:02:48]}  Nc6 {[%clk 0:03:01]} 6. dxc5 {[%clk 0:02:48]}  d4 {[%clk 0:03:02]} 7. Na4 {[%clk 0:02:44]}  Bxc5 {[%clk 0:03:02]} 8. Nxc5 {[%clk 0:02:44]}  Qa5+ {[%clk 0:03:03]} 9. Qd2 {[%clk 0:02:45]}  Qxc5 {[%clk 0:03:03]} 10. e3 {[%clk 0:02:45]}  dxe3 {[%clk 0:02:50]} 11. Qxe3+ {[%clk 0:02:46]}  Qxe3+ {[%clk 0:02:51]} 12. Bxe3 {[%clk 0:02:46]}  Nge7 {[%clk 0:02:49]} 13. Bc4 {[%clk 0:02:45]}  O-O {[%clk 0:02:49]} 14. O-O-O {[%clk 0:02:45]}  Bg4 {[%clk 0:02:36]} 15. Kb1 {[%clk 0:02:44]}  h6 {[%clk 0:02:24]} 16. h3 {[%clk 0:02:02]}  Bxf3 {[%clk 0:02:01]} 17. gxf3 {[%clk 0:02:03]}  Rfd8 {[%clk 0:01:58]} 18. Rhg1 {[%clk 0:01:51]}  Kf8 {[%clk 0:01:52]} 19. f4 {[%clk 0:01:47]}  b6 {[%clk 0:01:49]} 20. Be2 {[%clk 0:01:21]}  Rxd1+ {[%clk 0:01:49]} 21. Rxd1 {[%clk 0:01:20]}  Rd8 {[%clk 0:01:49]} 22. Rxd8+ {[%clk 0:01:20]}  Nxd8 {[%clk 0:01:48]} 23. Kc2 {[%clk 0:01:20]}  Nec6 {[%clk 0:01:41]} 24. Kc3 {[%clk 0:01:16]}  Ke7 {[%clk 0:01:41]} 25. Bc4 {[%clk 0:01:13]}  Kd6 {[%clk 0:01:40]} 26. b4 {[%clk 0:01:10]}  f6 {[%clk 0:01:38]} 27. a4 {[%clk 0:01:09]}  Ne6 {[%clk 0:01:26]} 28. h4 {[%clk 0:01:01]}  Nc7 {[%clk 0:01:25]} 29. b5 {[%clk 0:00:53]}  Ne7 {[%clk 0:01:23]} 30. Bd2 {[%clk 0:00:49]}  Ned5+ {[%clk 0:01:22]} 31. Kd3 {[%clk 0:00:44]}  Ne6 {[%clk 0:01:12]} 32. Ke4 {[%clk 0:00:44]}  Nc5+ {[%clk 0:01:11]} 33. Kf5 {[%clk 0:00:43]}  Ne7+ {[%clk 0:01:10]} 34. Kg4 {[%clk 0:00:44]}  Nxa4 {[%clk 0:01:11]} 35. Bb4+ {[%clk 0:00:44]}  Nc5 {[%clk 0:01:11]} 36. h5 {[%clk 0:00:40]}  f5+ {[%clk 0:00:57]} 37. Kf3 {[%clk 0:00:40]}  Nd5 {[%clk 0:00:57]} 38. Ba3 {[%clk 0:00:36]}  Nf6 {[%clk 0:00:55]} 39. Bd3 {[%clk 0:00:33]}  Ke6 {[%clk 0:00:51]} 40. Bc4+ {[%clk 0:00:33]}  Kd6 {[%clk 0:00:51]} 41. Bd3 {[%clk 0:00:34]}  Nxh5 {[%clk 0:00:44]} 42. Bxf5 {[%clk 0:00:34]}  Nf6 {[%clk 0:00:44]} 43. Bg6 {[%clk 0:00:23]}  Kd5 {[%clk 0:00:43]} 44. Bf7+ {[%clk 0:00:21]}  Kd4 {[%clk 0:00:42]} 45. Bb2+ {[%clk 0:00:21]}  Kd3 {[%clk 0:00:43]} 46. Bxf6 {[%clk 0:00:21]}  gxf6 {[%clk 0:00:42]} 47. Kg4 {[%clk 0:00:21]}  a5 {[%clk 0:00:19]} 48. bxa6 {[%clk 0:00:19]}  Nxa6 {[%clk 0:00:19]} 49. Kf5 {[%clk 0:00:19]}  b5 {[%clk 0:00:17]} 50. Kxf6 {[%clk 0:00:19]}  Nc5 {[%clk 0:00:15]} 51. Kg6 {[%clk 0:00:17]}  Ne4 {[%clk 0:00:04]} 52. f5 {[%clk 0:00:16]}  Nxf2 {[%clk 0:00:04]} 53. Kxh6 {[%clk 0:00:16]}  Ke4 {[%clk 0:00:03]} 54. Kg6 {[%clk 0:00:16]}  Ke5 {[%clk 0:00:03]} 55. Be8 {[%clk 0:00:14]}  Ne4 {[%clk 0:00:01]} 56. Bxb5 {[%clk 0:00:14]}  Nf6 {[%clk 0:00:02]} 57. Bd3 {[%clk 0:00:13]}  Nd5 {[%clk 0:00:02]} 58. Kg7 {[%clk 0:00:13]}  Nf6 {[%clk 0:00:03]} 59. Bc2 {[%clk 0:00:12]}  Nd5 {[%clk 0:00:03]} 60. Bb1 {[%clk 0:00:13]}  Nf6 {[%clk 0:00:04]} 61. Bc2 {[%clk 0:00:13]}  Nd5 {[%clk 0:00:04]} 62. Kg6 {[%clk 0:00:13]}  Nf6 {[%clk 0:00:05]} 63. Kg7 {[%clk 0:00:13]} 1/2-1/2


[Site "https://www.chess.com"]

[Event "Titled Tuesday Blitz June 15 2021"]
[White "Assaubayeva, Bibisara"]
[Black "Kovalev, Vladislav"]
[WhiteFideId "13708694"]
[BlackFideId "13504398"]
[WhiteElo "2232"]
[BlackElo "2573"]
[Result "0-1"]
[Round "07"]
[TimeControl "180+1"]
[Date "2021.06.15"]
[WhiteClock "0:01:19"]
[BlackClock "0:00:52"]

1. d4 {[%clk 0:03:00]}  Nf6 {[%clk 0:03:00]} 2. c4 {[%clk 0:03:00]}  g6 {[%clk 0:03:00]} 3. Nc3 {[%clk 0:03:00]}  Bg7 {[%clk 0:03:01]} 4. e4 {[%clk 0:03:00]}  d6 {[%clk 0:03:01]} 5. Be2 {[%clk 0:03:01]}  O-O {[%clk 0:03:02]} 6. Be3 {[%clk 0:03:01]}  c5 {[%clk 0:03:02]} 7. d5 {[%clk 0:03:02]}  e6 {[%clk 0:03:02]} 8. Nf3 {[%clk 0:03:02]}  exd5 {[%clk 0:03:01]} 9. cxd5 {[%clk 0:03:03]}  Re8 {[%clk 0:02:58]} 10. Nd2 {[%clk 0:03:03]}  Na6 {[%clk 0:02:59]} 11. O-O {[%clk 0:03:02]}  Nc7 {[%clk 0:02:59]} 12. a4 {[%clk 0:02:59]}  b6 {[%clk 0:02:59]} 13. Re1 {[%clk 0:02:57]}  a6 {[%clk 0:02:59]} 14. Bf4 {[%clk 0:02:53]}  Rb8 {[%clk 0:02:48]} 15. Nc4 {[%clk 0:02:31]}  Nxe4 {[%clk 0:02:42]} 16. Nxe4 {[%clk 0:02:31]}  Rxe4 {[%clk 0:02:43]} 17. Bxd6 {[%clk 0:02:31]}  b5 {[%clk 0:02:09]} 18. axb5 {[%clk 0:02:26]}  axb5 {[%clk 0:02:10]} 19. Ra7 {[%clk 0:02:16]}  Rb7 {[%clk 0:02:05]} 20. Rxb7 {[%clk 0:02:14]}  Bxb7 {[%clk 0:02:06]} 21. Bxc7 {[%clk 0:02:15]}  Qxc7 {[%clk 0:02:07]} 22. d6 {[%clk 0:02:15]}  Qd8 {[%clk 0:02:04]} 23. Ne3 {[%clk 0:02:01]}  c4 {[%clk 0:01:42]} 24. b3 {[%clk 0:01:55]}  Rd4 {[%clk 0:01:09]} 25. Qc2 {[%clk 0:01:52]}  Be4 {[%clk 0:01:07]} 26. Qa2 {[%clk 0:01:47]}  c3 {[%clk 0:01:02]} 27. Bxb5 {[%clk 0:01:43]}  Rxd6 {[%clk 0:01:02]} 28. Nc4 {[%clk 0:01:31]}  Rd1 {[%clk 0:00:57]} 29. Qe2 {[%clk 0:01:23]}  Rxe1+ {[%clk 0:00:57]} 30. Qxe1 {[%clk 0:01:24]}  c2 {[%clk 0:00:56]} 31. Ne3 {[%clk 0:01:21]}  Bb2 {[%clk 0:00:54]} 32. Nxc2 {[%clk 0:01:18]}  Bxc2 {[%clk 0:00:54]} 33. Bc4 {[%clk 0:01:19]}  Qd1 {[%clk 0:00:52]} 0-1


[Site "https://www.chess.com"]

[Event "Titled Tuesday Blitz June 15 2021"]
[White "Avila Pavas, Santiago"]
[Black "Nguyen, Ngoc Truong Son"]
[WhiteFideId "4437128"]
[BlackFideId "12401110"]
[WhiteElo "2244"]
[BlackElo "2596"]
[Result "1-0"]
[Round "07"]
[TimeControl "180+1"]
[Date "2021.06.15"]
[WhiteClock "0:00:03"]
[BlackClock "0:00:07"]

1. d4 {[%clk 0:03:00]}  Nf6 {[%clk 0:02:59]} 2. Nf3 {[%clk 0:03:01]}  e6 {[%clk 0:02:59]} 3. g3 {[%clk 0:03:01]}  b6 {[%clk 0:02:58]} 4. Bg2 {[%clk 0:03:01]}  Bb7 {[%clk 0:02:59]} 5. c4 {[%clk 0:03:00]}  Bb4+ {[%clk 0:02:57]} 6. Bd2 {[%clk 0:03:00]}  a5 {[%clk 0:02:52]} 7. O-O {[%clk 0:02:59]}  O-O {[%clk 0:02:51]} 8. a3 {[%clk 0:03:00]}  Bxd2 {[%clk 0:02:47]} 9. Qxd2 {[%clk 0:02:59]}  d6 {[%clk 0:02:40]} 10. Qf4 {[%clk 0:02:52]}  Nbd7 {[%clk 0:02:38]} 11. Nc3 {[%clk 0:02:51]}  Re8 {[%clk 0:02:35]} 12. Rfd1 {[%clk 0:02:49]}  Qe7 {[%clk 0:02:21]} 13. Rac1 {[%clk 0:02:32]}  Rab8 {[%clk 0:01:56]} 14. Qh4 {[%clk 0:02:25]}  h6 {[%clk 0:01:54]} 15. e4 {[%clk 0:02:16]}  Nf8 {[%clk 0:01:49]} 16. Qf4 {[%clk 0:02:13]}  e5 {[%clk 0:01:45]} 17. dxe5 {[%clk 0:02:10]}  dxe5 {[%clk 0:01:46]} 18. Qe3 {[%clk 0:02:07]}  c5 {[%clk 0:00:51]} 19. Nd5 {[%clk 0:01:58]}  Bxd5 {[%clk 0:00:51]} 20. cxd5 {[%clk 0:01:58]}  Rec8 {[%clk 0:00:38]} 21. Nd2 {[%clk 0:01:29]}  b5 {[%clk 0:00:36]} 22. Nb3 {[%clk 0:01:29]}  c4 {[%clk 0:00:17]} 23. Nxa5 {[%clk 0:01:29]}  Qd6 {[%clk 0:00:14]} 24. Nc6 {[%clk 0:00:41]}  Rb7 {[%clk 0:00:14]} 25. f4 {[%clk 0:00:38]}  N8d7 {[%clk 0:00:14]} 26. Bh3 {[%clk 0:00:36]}  Re8 {[%clk 0:00:13]} 27. Bxd7 {[%clk 0:00:28]}  Nxd7 {[%clk 0:00:13]} 28. f5 {[%clk 0:00:24]}  Nc5 {[%clk 0:00:12]} 29. g4 {[%clk 0:00:21]}  Nb3 {[%clk 0:00:11]} 30. Rc2 {[%clk 0:00:20]}  Rc7 {[%clk 0:00:11]} 31. Rf1 {[%clk 0:00:09]}  f6 {[%clk 0:00:10]} 32. h4 {[%clk 0:00:08]}  Rxc6 {[%clk 0:00:10]} 33. dxc6 {[%clk 0:00:09]}  Qxc6 {[%clk 0:00:10]} 34. g5 {[%clk 0:00:09]}  h5 {[%clk 0:00:10]} 35. gxf6 {[%clk 0:00:09]}  Qxf6 {[%clk 0:00:10]} 36. Rg2 {[%clk 0:00:08]}  Rd8 {[%clk 0:00:10]} 37. Rg6 {[%clk 0:00:07]}  Qxh4 {[%clk 0:00:09]} 38. f6 {[%clk 0:00:08]}  Rd7 {[%clk 0:00:08]} 39. Qb6 {[%clk 0:00:03]}  Kh7 {[%clk 0:00:08]} 40. fxg7 {[%clk 0:00:01]}  Rxg7 {[%clk 0:00:07]} 41. Rxg7+ {[%clk 0:00:02]}  Kxg7 {[%clk 0:00:08]} 42. Qc7+ {[%clk 0:00:02]}  Kh6 {[%clk 0:00:09]} 43. Qd6+ {[%clk 0:00:02]}  Kg7 {[%clk 0:00:08]} 44. Qd7+ {[%clk 0:00:02]}  Kh6 {[%clk 0:00:07]} 45. Qe6+ {[%clk 0:00:03]} 1-0


[Site "https://www.chess.com"]